{"text_format":"1","workbook":"xlsx","n_sheets":8,"sheets":["Directions","Form","JAC entities (2)","Fund ID","Object Code","Revenue Categories","Vendors used in past","Examples-why funds are owed"],"not_rendered":{"charts":0,"images":0,"macros":1,"external_links":0,"defined_names":8,"comments":1,"pivot_tables":0},"unopened":[],"bounds":{"document_bytes":16777216,"sheet_cells":100000,"rows_first":2000,"rows_last":500,"rows_between":2000,"halvings":0,"cell_chars":16384,"cell_head_chars":4096},"cells_cut":0,"cells_raw":0,"read":"whole","date_system":"1900"}

{"sheet":"Directions","index":0,"n_rows":12,"n_cols":5,"rows_kept":12,"cut":false,"hidden":false,"merged":[[0,0,0,1],[1,0,1,1],[2,0,2,1]]}
["Financial Statements Information Request"]
["Receivables List Directions"]
["2017-2018 Fiscal Year"]
["Field Name","Directions for completion of fields"]
["ORG","Enter the JRO Organizational Code where funds will be deposited.  \n\nEnter numbers only and leave off the 21.  \n\nExample 30-80-00-000.  \n\nPlease refer to the Account Codes list for each JRO provided by JAC Accounting."]
["EO","Enter the EO that is tied to the Organizational Code field where funds will be deposited.  \n\nEnter the 2-digits (letters or numbers) in the field.  \n\nPlease refer to the Account Codes list for each JRO provided by JAC Accounting."]
["Fund ID ","Enter your JRO specific Fund Id or use the drop down and pick the generic fund identifier."]
["Object Code","Enter 6-digit code or use drop down.",null,null,"    "]
["Category ","Enter 6-digit code or use drop down."]
["Amount Due","Amount to be remitted by Individual, vendor, or governmental entity"]
["Who are the funds due from?","Pick from the drop down menu or enter individual's name, vendor or governmental entity if not shown on the list.  Enter the Vendor ID or 21-digit account code if known.\n\nThe Drop Down will show the entities name and their Vendor ID or 21-digit Account Code\n\nRefer to examples tab  \"Examples-who funds are due from\"\n\nExamples tab contains Vendor's name, Vendor ID or 21-digit code, descriptions and object code and category tied to that description"]
["Reason funds are owed\n","Enter the reason the funds are owed to your JRO.  \n\nRefer to examples tab \"Examples-why funds are due\"\n\nFor STATE AGENCIES list each amount due separately."]

{"sheet":"Form","index":1,"n_rows":58,"n_cols":8,"rows_kept":58,"cut":false,"hidden":false,"merged":[[0,0,0,7],[1,0,1,7],[2,0,2,7],[3,1,3,2],[5,0,5,7],[57,0,57,4]]}
["Financial Statements Information Request"]
["Receivables List"]
["2017-2018 Fiscal Year"]
["JRO:   ",null,null,null,null,null,"Prepared by:   "]
[]
["This list should contain all funds due to or owed to your office as of June 30th from all sources (federal agencies, state agencies, city, county, etc.) for grants, contracts, overpayments, other reimbursements or refunds.  This includes refunds to be paid to General Revenue Unallocated (previously provided on form 4).  This list should not include 4th quarter service charge payable to GR, JAC will automatically set-up those receivables."]
["ORG* ","EO*","Fund ID ","Object Code","Category ","Amount Due","Who are the funds due from?","Reason funds are owed to the JRO"]
[]
[]
[]
[]
[]
[]
[]
[]
[]
[]
[]
[]
[]
[]
[]
[]
[]
[]
[]
[]
[]
[]
[]
[]
[]
[]
[]
[]
[]
[]
[]
[]
[]
[]
[]
[]
[]
[]
[]
[]
[]
[]
[]
[]
[]
[]
[]
[]
[]
[]
["* ORG/EO enter ORG code and EO as shown on your JRO Account Codes by Circuit List",null,null,null,null,{"$f":"SUM(F8:F57)","v":0},"Total for Receivables"]

{"sheet":"JAC entities (2)","index":2,"n_rows":56,"n_cols":4,"rows_kept":56,"cut":false,"hidden":true,"merged":[]}
["JAC ENTITIES","ABBV","BE","ORG"]
["CAPITAL COLLATERAL REGIONAL COUNSEL -NORTHERN","CCRC-N","21701001"]
["CAPITAL COLLATERAL REGIONAL COUNSEL -MIDDLE","CCRC-M","21702001"]
["CAPITAL COLLATERAL REGIONAL COUNSEL -SOUTHERN","CCRC-S","21703001"]
["GUARDIAN AD LITEM OFFICE","GAL","21310000"]
["JUDICIAL ADMINISTRATIVE COMMISSION","JAC","21300800"]
["PUBLIC DEFENDER-1ST CIRCUIT","PD01","21600100"]
["PUBLIC DEFENDER-2ND CIRCUIT","PD02","21600200"]
["PUBLIC DEFENDER-3RD CIRCUIT","PD03","21600300"]
["PUBLIC DEFENDER-4TH CIRCUIT","PD04","21600400"]
["PUBLIC DEFENDER-5TH CIRCUIT","PD05","21600500"]
["PUBLIC DEFENDER-6TH CIRCUIT","PD06","21600600"]
["PUBLIC DEFENDER-7TH CIRCUIT","PD07","21600700"]
["PUBLIC DEFENDER-8TH CIRCUIT","PD08","21600800"]
["PUBLIC DEFENDER-9TH CIRCUIT","PD09","21600900"]
["PUBLIC DEFENDER-10TH CIRCUIT","PD10","21601000"]
["PUBLIC DEFENDER-11TH CIRCUIT","PD11","21601100"]
["PUBLIC DEFENDER-12TH CIRCUIT","PD12","21601200"]
["PUBLIC DEFENDER-13TH CIRCUIT","PD13","21601300"]
["PUBLIC DEFENDER-14TH CIRCUIT","PD14","21601400"]
["PUBLIC DEFENDER-15TH CIRCUIT","PD15","21601500"]
["PUBLIC DEFENDER-16TH CIRCUIT","PD16","21601600"]
["PUBLIC DEFENDER-17TH CIRCUIT","PD17","21601700"]
["PUBLIC DEFENDER-18TH CIRCUIT","PD18","21601800"]
["PUBLIC DEFENDER-19TH CIRCUIT","PD19","21601900"]
["PUBLIC DEFENDER-20TH CIRCUIT","PD20","21602000"]
["PUBLIC DEFENDER-2ND CIRCUIT-APPELLANT","PD02","21650200"]
["PUBLIC DEFENDER-7TH CIRCUIT","PD07","21650700"]
["PUBLIC DEFENDER-10TH CIRCUIT","PD10","21651000"]
["PUBLIC DEFENDER-11TH CIRCUIT","PD11","21651100"]
["PUBLIC DEFENDER-15TH CIRCUIT","PD15","21651500"]
["REGIONAL CONFLICT COUNSEL -  1ST REG","RC01","21800100"]
["REGIONAL CONFLICT COUNSEL -  2ND REG","RC02","21800200"]
["REGIONAL CONFLICT COUNSEL -  3RD REG","RC03","21800300"]
["REGIONAL CONFLICT COUNSEL -  4TH REG","RC04","21800400"]
["REGIONAL CONFLICT COUNSEL -  5TH REG","RC05","21800500"]
["STATE ATTORNEY-1ST CIRCUIT","SA01","21500100"]
["STATE ATTORNEY-2ND CIRCUIT","SA02","21500200"]
["STATE ATTORNEY-3RD CIRCUIT","SA03","21500300"]
["STATE ATTORNEY-4TH CIRCUIT","SA04","21500400"]
["STATE ATTORNEY-5TH CIRCUIT","SA05","21500500"]
["STATE ATTORNEY-6TH CIRCUIT","SA06","21500600"]
["STATE ATTORNEY-7TH CIRCUIT","SA07","21500700"]
["STATE ATTORNEY-8TH CIRCUIT","SA08","21500800"]
["STATE ATTORNEY-9TH CIRCUIT","SA09","21500900"]
["STATE ATTORNEY-10TH CIRCUIT","SA10","21501000"]
["STATE ATTORNEY-11TH CIRCUIT","SA11","21501100"]
["STATE ATTORNEY-12TH CIRCUIT","SA12","21501200"]
["STATE ATTORNEY-13TH CIRCUIT","SA13","21501300"]
["STATE ATTORNEY-14TH CIRCUIT","SA14","21501400"]
["STATE ATTORNEY-15TH CIRCUIT","SA15","21501500"]
["STATE ATTORNEY-16TH CIRCUIT","SA16","21501600"]
["STATE ATTORNEY-17TH CIRCUIT","SA17","21501700"]
["STATE ATTORNEY-18TH CIRCUIT","SA18","21501800"]
["STATE ATTORNEY-19TH CIRCUIT","SA19","21501900"]
["STATE ATTORNEY-20TH CIRCUIT","SA20","21502000"]

{"sheet":"Fund ID","index":3,"n_rows":10,"n_cols":3,"rows_kept":10,"cut":false,"hidden":false,"merged":[]}
["Display list","Fund ID*","Fund Description"]
[{"$f":"+B2&\" General Revenue\"","v":"000XXX General Revenue"},"000XXX","General Revenue (GR"]
[{"$f":"+B3&\" SA Revenue TF\"","v":"058XXX SA Revenue TF"},"058XXX","State Attorney Revenue Trust Fund (SARTF)"]
[{"$f":"+B4&\" PD Revenue TF\"","v":"059XXX PD Revenue TF"},"059XXX","Public Defender Revenue Trust Fund (PDRTF)"]
[{"$f":"+B5&\" CCRC Revenue TF\"","v":"073XXX CCRC Revenue TF"},"073XXX","Capital Collateral Regional Counsel Trust Fund (CCRCTF)"]
[{"$f":"+B6&\" Child Support TF\"","v":"084XXX Child Support TF"},"084XXX","Child Support Trust Fund "]
[{"$f":"+B7&\" RICO TF\"","v":"095XXX RICO TF"},"095XXX","Civil RICO Trust Fund (RICO)"]
[{"$f":"+B8&\" Forfeiture TF\"","v":"316XXX Forfeiture TF"},"316XXX","Forfeiture and Equity Support Trust Fund (FEST)"]
[{"$f":"+B9&\" G&D TF\"","v":"339XXX G&D TF"},"339XXX","Grants and Donations Trust Fund (G&DTF)"]
[{"$f":"+B10&\" ICDTF\"","v":"974XXX ICDTF"},"974XXX","Indigent Criminal Defense Sharing Trust Fund (ICDTF)"]

{"sheet":"Object Code","index":4,"n_rows":18,"n_cols":3,"rows_kept":18,"cut":false,"hidden":false,"merged":[]}
["Object Code","Description","Revenue Object Codes \n(not a complete list of all revenue object codes)"]
["001000","State Fees",{"$f":"+A2&\" - \"&B2","v":"001000 - State Fees"}]
["001500","County & City Fees",{"$f":"+A3&\" - \"&B3","v":"001500 - County & City Fees"}]
["007000","Grants & Donations - U.S.","007000 - Grants & Donations - U.S."]
["007099","U.S. Grants - Indirect","007099 - U.S. Grants - Indirect"]
["008000","Grants & Donations - City & County","008000 - Grants & Donations - City & County"]
["008100","Grants & Donations - City & County - Continued","008100 - Grants & Donations - City & County - Continued"]
["010300","Sale of Goods & Services to State Agencies","010300 - Sale of Goods & Services to State Agencies"]
["010301","Sale of Goods & Services to State Agencies, State Funds Transferred In","010301 - Sale of Goods & Services to State Agencies, State Funds Transferred In"]
["010303","Sale of Goods & Services - not federal nor transfer","010303 - Sale of Goods & Services - not federal nor transfer"]
["011000","Grants & Donations - Other","011000 - Grants & Donations - Other"]
["011011","Grants & Donations - Other - No Service Charge","011011 - Grants & Donations - Other - No Service Charge"]
["015000","Transfers","015000 - Transfers"]
["015100","Transfers - Continued","015100 - Transfers - Continued"]
["018000","Refunds","018000 - Refunds"]
["018002","Reimbursements","018002 - Reimbursements"]
["018003","Non-Grant Federal Reimbursements to TF","018003 - Non-Grant Federal Reimbursements to TF"]
["018077","Refund/Reimburse Federal Revenues - Non-Grant","018077 - Refund/Reimburse Federal Revenues - Non-Grant"]

{"sheet":"Revenue Categories","index":5,"n_rows":17,"n_cols":4,"rows_kept":17,"cut":false,"hidden":false,"merged":[[0,0,0,3]]}
["Revenue Categories \n(not a complete list of all revenue Categories)"]
["Category","Category Title","Display list","Example"]
["000100","Fees",{"$f":"+A3&\" - \"&B3","v":"000100 - Fees"}]
["000500","Interest","000500 - Interest"]
["000700","U.S. Grants","000700 - U.S. Grants"]
["000799","U.S. Grants - Indirect ","000799 - U.S. Grants - Indirect "]
["000800","City or County Grants ","000800 - City or County Grants "]
["000810","City or County Grants - No Service Charge ","000810 - City or County Grants - No Service Charge "]
["001100","Other Grants","001100 - Other Grants"]
["001110","Other Grants - No Service Charge","001110 - Other Grants - No Service Charge"]
["001500","Transfers ","001500 - Transfers "]
["001510","Transfer of Federal Funds ","001510 - Transfer of Federal Funds "]
["001520","Transfers - Subject to Service Charge ","001520 - Transfers - Subject to Service Charge ","(i.e. DMS Auction Proceeds)"]
["001800","Refunds ","001800 - Refunds "]
["001801","Reimbursements","001801 - Reimbursements"]
["001870","Refunds/Reimbursements of Federal Funded Expenditures","001870 - Refunds/Reimbursements of Federal Funded Expenditures"]
["001903","Sales of Goods/Services to State Agencies ","001903 - Sales of Goods/Services to State Agencies "]

{"sheet":"Vendors used in past","index":6,"n_rows":100,"n_cols":6,"rows_kept":100,"cut":false,"hidden":false,"merged":[]}
["Agency","21-DigitAccountCode","Description","Object Code","Category","Display"]
["Employee's name for salary or other overpayment","Employee SSN or FEIN ID","salary overpayment, bar dues refund, or other overpayment","tbd","tbd"]
["Able Trust  ","F593052307003","task force - reimbursments","011011","001110",{"$f":"+A3&\" - \"&B3","v":"Able Trust   - F593052307003"}]
["Americorp Solutions","F461347752001","veterans program - grant","007099","000799",{"$f":"+A4&\" - \"&B4","v":"Americorp Solutions - F461347752001"}]
["Florida Coalition Against Domestic Violence","F592055476005","Violence Against Women Prevention (VAWA grant)","007099","000799","Florida Coalition Against Domestic Violence - F592055476005"]
["Florida Council Against Sexual Violence","F593432096001","STOP Violence Against Women (STOP Grant)","007099","000799","Florida Council Against Sexual Violence - F593432096001"]
["Dept. of Business & Professional Regulation","79-20-2-520001-79102000-00","pari-mutuel enforcement - slot investigation & prosecution","015000","001500","Dept. of Business & Professional Regulation - 79-20-2-520001-79102000-00"]
["Dept. of Children & Families","60-10-1-000326-60910950-00","substance abuse treatment - investigation & prosecution","010300","001903","Dept. of Children & Families - 60-10-1-000326-60910950-00"]
["Dept. of Children & Families","60-10-1-000326-60910950-00","competency grant","011011","001110","Dept. of Children & Families - 60-10-1-000326-60910950-00"]
["Dept. of Children & Families","60-20-2-339128-60910310-00","reimbursement","015000","001500","Dept. of Children & Families - 60-20-2-339128-60910310-00"]
["Dept. of Children & Families","60-20-2-339128-60910310-00","child welfare - prosecution","010300","001903","Dept. of Children & Families - 60-20-2-339128-60910310-00"]
["Dept. of Financial Services","43-10-2-393001-43700300-00","insurance fraud","015000","001500","Dept. of Financial Services - 43-10-2-393001-43700300-00"]
["Dept. of Financial Services","43-20-2-795003-43600100-00","workers compensation insurance fraud ","015000","001500","Dept. of Financial Services - 43-20-2-795003-43600100-00"]
["Dept. of Legal Affairs","41-20-2-261021-41100400-00","Victims of Crime Act (VOCA grant) ","015100","001510","Dept. of Legal Affairs - 41-20-2-261021-41100400-00"]
["Dept. of Management Services","72-20-2-510103-72600300-00","auction proceeds - cars","001520","015000","Dept. of Management Services - 72-20-2-510103-72600300-00"]
["Dept. of Revenue","73-20-2-261017-73310000-00","parent time grant","015000","001500","Dept. of Revenue - 73-20-2-261017-73310000-00"]
["Dept. of Revenue","73-20-2-261017-73310000-00","child support enforcement grant (SA11)","015100","001510","Dept. of Revenue - 73-20-2-261017-73310000-00"]
["Dept. of Revenue","73-20-2-261017-73310000-00","child support - prosecution","010300","001903","Dept. of Revenue - 73-20-2-261017-73310000-00"]
["Office of State Courts Administration","22-10-1-000068-22300100-00","veterans court","015000","001500",{"$f":"+A19&\" - \"&B19","v":"Office of State Courts Administration - 22-10-1-000068-22300100-00"}]
["US Dept. of Justice","F521109724002","grant","007000","000700","US Dept. of Justice - F521109724002"]
["US Marshal","F541880804004","grant or reimbursement","018077","001870","US Marshal - F541880804004"]
["US Office of National Drug Control","F521101890001","grant or reimbursement","007000","000700","US Office of National Drug Control - F521101890001"]
["Cities"]
["City of Atlantic","F596000267001","grant or reimbursement","tbd","tbd","City of Atlantic - F596000267001"]
["City of Coral Gables","F596000293001","grant or reimbursement","tbd","tbd","City of Coral Gables - F596000293001"]
["City of Ft. Myers","F350829928001","grant or reimbursement","tbd","tbd","City of Ft. Myers - F350829928001"]
["City of Jacksonville","F596000344019","grant or reimbursement","tbd","tbd","City of Jacksonville - F596000344019"]
["City of Jacksonville Beach","F596000343001","grant or reimbursement","tbd","tbd","City of Jacksonville Beach - F596000343001"]
["City of Miami","F596000375007","grant or reimbursement","tbd","tbd","City of Miami - F596000375007"]
["City of Naples ","F596000382013","grant or reimbursement","tbd","tbd","City of Naples  - F596000382013"]
["City of Neptune ","F596000384011","grant or reimbursement","tbd","tbd","City of Neptune  - F596000384011"]
["City of Orlando ","F596000396014","grant or reimbursement","tbd","tbd","City of Orlando  - F596000396014"]
["Counties - Board of County Commissioners (BOCC)"]
["Alachua BOCC","F591863359014","grant or reimbursement","tbd","tbd","Alachua BOCC - F591863359014"]
["Baker County BOCC","F596000508003","grant or reimbursement","tbd","tbd","Baker County BOCC - F596000508003"]
["Bay County BOCC","F596000512003","grant or reimbursement","tbd","tbd","Bay County BOCC - F596000512003"]
["Bradford County BOCC","F596000519035","grant or reimbursement","tbd","tbd","Bradford County BOCC - F596000519035"]
["Brevard County BOCC","F596000523008","grant or reimbursement","tbd","tbd","Brevard County BOCC - F596000523008"]
["Broward County BOCC","F596000531004","grant or reimbursement","tbd","tbd","Broward County BOCC - F596000531004"]
["Calhoun County BOCC","F596000538005","grant or reimbursement","tbd","tbd","Calhoun County BOCC - F596000538005"]
["Charlotte County BOCC","F596000541056","grant or reimbursement","tbd","tbd","Charlotte County BOCC - F596000541056"]
["Citrus County BOCC","F596000548007","grant or reimbursement","tbd","tbd","Citrus County BOCC - F596000548007"]
["Clay County BOCC","F596000553004","grant or reimbursement","tbd","tbd","Clay County BOCC - F596000553004"]
["Collier County BOCC","F596000558030","grant or reimbursement","tbd","tbd","Collier County BOCC - F596000558030"]
["Columbia County BOCC","F596000564010","grant or reimbursement","tbd","tbd","Columbia County BOCC - F596000564010"]
["Desoto County BOCC","F596000579002","grant or reimbursement","tbd","tbd","Desoto County BOCC - F596000579002"]
["Dixie County BOCC","F596000587040","grant or reimbursement","tbd","tbd","Dixie County BOCC - F596000587040"]
["Duval County","F596000344327","grant or reimbursement","tbd","tbd","Duval County - F596000344327"]
["Escambia BOCC","F596000598154","grant or reimbursement","tbd","tbd","Escambia BOCC - F596000598154"]
["Flagler County BOCC","F596000605028","grant or reimbursement","tbd","tbd","Flagler County BOCC - F596000605028"]
["Franklin County BOCC","F596000612007","grant or reimbursement","tbd","tbd","Franklin County BOCC - F596000612007"]
["Gadsden County BOCC","F596000616065","grant or reimbursement","tbd","tbd","Gadsden County BOCC - F596000616065"]
["Gilchrist County","F596000622025","grant or reimbursement","tbd","tbd","Gilchrist County - F596000622025"]
["Glades County BOCC","F596000625005","grant or reimbursement","tbd","tbd","Glades County BOCC - F596000625005"]
["Gulf County BOCC","F596000627033","grant or reimbursement","tbd","tbd","Gulf County BOCC - F596000627033"]
["Hamilton County BOCC","F596000628022","grant or reimbursement","tbd","tbd","Hamilton County BOCC - F596000628022"]
["Hardee County BOCC","F596000632002","grant or reimbursement","tbd","tbd","Hardee County BOCC - F596000632002"]
["Hendry County BOCC","F596000639002","grant or reimbursement","tbd","tbd","Hendry County BOCC - F596000639002"]
["Hernando County BOCC","F591155275001","grant or reimbursement","tbd","tbd","Hernando County BOCC - F591155275001"]
["Highlands County BOCC","F596000655046","grant or reimbursement","tbd","tbd","Highlands County BOCC - F596000655046"]
["Hillsborough County BOCC","F596000661002","grant or reimbursement","tbd","tbd","Hillsborough County BOCC - F596000661002"]
["Holmes County BOCC","F596000669046","grant or reimbursement","tbd","tbd","Holmes County BOCC - F596000669046"]
["Indian river BOCC","F596000674068","grant or reimbursement","tbd","tbd","Indian river BOCC - F596000674068"]
["Jackson County BOCC","F596000681038","grant or reimbursement","tbd","tbd","Jackson County BOCC - F596000681038"]
["Jefferson County BOCC","F596000690004","grant or reimbursement","tbd","tbd","Jefferson County BOCC - F596000690004"]
["Lafayette County BOCC","F596000692006","grant or reimbursement","tbd","tbd","Lafayette County BOCC - F596000692006"]
["Lake County BOCC","F596000695057","grant or reimbursement","tbd","tbd","Lake County BOCC - F596000695057"]
["Lee County BOCC","F596000702005","grant or reimbursement","tbd","tbd","Lee County BOCC - F596000702005"]
["Leon BOCC","F596000708002","grant or reimbursement","tbd","tbd","Leon BOCC - F596000708002"]
["Levy County BOCC","F596000717023","grant or reimbursement","tbd","tbd",{"$f":"+A70&\" - \"&B70","v":"Levy County BOCC - F596000717023"}]
["Liberty County BOCC","F596017778006","grant or reimbursement","tbd","tbd","Liberty County BOCC - F596017778006"]
["Madison County BOCC","F596000722033","grant or reimbursement","tbd","tbd","Madison County BOCC - F596000722033"]
["Manatee County BOCC","F596000727156","grant or reimbursement","tbd","tbd","Manatee County BOCC - F596000727156"]
["Marion County BOCC","F596000735012","grant or reimbursement","tbd","tbd","Marion County BOCC - F596000735012"]
["Martin County BOCC","F596000743013","grant or reimbursement","tbd","tbd","Martin County BOCC - F596000743013"]
["Miami-Dade County","F596000573025","grant or reimbursement","tbd","tbd","Miami-Dade County - F596000573025"]
["Monroe County BOCC","F596000749018","grant or reimbursement","tbd","tbd","Monroe County BOCC - F596000749018"]
["Nassau County BOCC","F591863042039","grant or reimbursement","tbd","tbd","Nassau County BOCC - F591863042039"]
["Okaloosa County BOCC","F596000765007","grant or reimbursement","tbd","tbd","Okaloosa County BOCC - F596000765007"]
["Okeechobee County BOCC","F596000768038","grant or reimbursement","tbd","tbd","Okeechobee County BOCC - F596000768038"]
["Orange County BOCC","F596000773011","grant or reimbursement","tbd","tbd","Orange County BOCC - F596000773011"]
["Osceola County BOCC","F596000780004","grant or reimbursement","tbd","tbd","Osceola County BOCC - F596000780004"]
["Palm Beach County BOCC","F596000785009","grant or reimbursement","tbd","tbd","Palm Beach County BOCC - F596000785009"]
["Pasco County BOCC","F596000793113","grant or reimbursement","tbd","tbd","Pasco County BOCC - F596000793113"]
["Pinellas County BOCC","F596000800002","grant or reimbursement","tbd","tbd","Pinellas County BOCC - F596000800002"]
["Polk County a Political Subdivision","F596000809010","grant or reimbursement","tbd","tbd","Polk County a Political Subdivision - F596000809010"]
["Putnam County BOCC","F596000816003","grant or reimbursement","tbd","tbd","Putnam County BOCC - F596000816003"]
["Santa Rosa County BOCC","F596000842001","grant or reimbursement","tbd","tbd","Santa Rosa County BOCC - F596000842001"]
["Sarasota County BOCC","F596000848013","grant or reimbursement","tbd","tbd","Sarasota County BOCC - F596000848013"]
["Seminole County BOCC","F596000856001","grant or reimbursement","tbd","tbd","Seminole County BOCC - F596000856001"]
["St Lucie County BOCC","F596000835059","grant or reimbursement","tbd","tbd","St Lucie County BOCC - F596000835059"]
["St Johns County BOCC","F596000825003","grant or reimbursement","tbd","tbd","St Johns County BOCC - F596000825003"]
["Sumter County BOCC","F596000865003","grant or reimbursement","tbd","tbd","Sumter County BOCC - F596000865003"]
["Suwannee County BOCC","F596000873068","grant or reimbursement","tbd","tbd","Suwannee County BOCC - F596000873068"]
["Taylor County BOCC","F596000879041","grant or reimbursement","tbd","tbd","Taylor County BOCC - F596000879041"]
["Union County BOCC","F596000882004","grant or reimbursement","tbd","tbd","Union County BOCC - F596000882004"]
["Volusia County BOCC","F596000885024","grant or reimbursement","tbd","tbd","Volusia County BOCC - F596000885024"]
["Wakulla County BOCC","F596031875046","grant or reimbursement","tbd","tbd","Wakulla County BOCC - F596031875046"]
["Walton County BOCC","F596002599065","grant or reimbursement","tbd","tbd","Walton County BOCC - F596002599065"]
["Washington County BOCC","F596000899005","grant or reimbursement","tbd","tbd","Washington County BOCC - F596000899005"]

{"sheet":"Examples-why funds are owed","index":7,"n_rows":25,"n_cols":2,"rows_kept":25,"cut":false,"hidden":false,"merged":[[24,0,24,1]]}
["Examples of why funds were owed to JRO in the past"]
["Auction Proceeds"]
["Child Support"]
["City Ordinance","*"]
["Competency"]
["Grant Reimbursement"]
["Local Ordinance","*"]
["Prosecute Insurance Fraud"]
["Prosecute Pari-Mutual Fraud"]
["Prosecute PIP Fraud","*"]
["Prosecute WC Insurance Fraud"]
["Public Records costs","*"]
["Refund - Bar Dues (when attorneys leave JRO)","*"]
["Refund - Salary overpayment","*"]
["Refund - Travel overpayment","*"]
["Reimbursement - federal expenditures"]
["Reimbursement - IT staff","*"]
["Reimbursement - other"]
["Teen Court","*"]
["VAWA"]
["Veteran Court"]
["VOCA"]
["Worthless Check Prosecution","*"]
[]
["* Items not tied to the Vendor Examples worksheet"]